fUST/lending_fUST_20240413
["ID","MTS","AMOUNT","RATE_DAILY","PERIOD"]
[322438140,1713001840140,-500.0,0.00035616,7]
[322438141,1713001840149,-500.0,0.00035616,7]
[322438142,1713001840158,-500.0,0.00035616,7]
[322438143,1713001840167,-500.0,0.00035616,7]
[322438144,1713001840176,-507.18,0.00035616,7]
[322438145,1713001840185,-500.0,0.00035616,7]
[322438146,1713001840194,-501.33177882,0.00035616,7]
[322438147,1713001840203,-683.72,0.00035616,7]
[322438148,1713001840213,-500.0,0.00035616,7]
[322438149,1713001840222,-500.0,0.00035616,7]
[322438150,1713001840231,-500.0,0.00035616,7]
[322438151,1713001840240,-500.0,0.00035616,7]
[322438152,1713001840249,-231.07620024,0.00035616,7]
[322438153,1713001840258,-500.0,0.00035616,7]
[322438154,1713001840268,-777.88,0.00035616,7]
[322438155,1713001840277,-500.0,0.00035616,7]
[322438156,1713001840286,-500.0,0.00035616,7]
[322438157,1713001840295,-500.0,0.00035616,7]
[322438158,1713001840305,-501.98539824,0.00035616,7]
[322438159,1713001840315,-500.0,0.00035616,7]
[322438160,1713001840325,-500.0,0.00035616,7]
[322438161,1713001840334,-500.0,0.00035616,7]
[322438162,1713001840345,-500.0,0.00035616,7]
[322438163,1713001840354,-500.0,0.00035616,7]
[322438164,1713001840363,-500.0,0.00035616,7]
[322438165,1713001840372,-1258.32,0.00035616,7]
[322438166,1713001840382,-500.0,0.00035616,7]
[322438167,1713001840391,-500.0,0.00035616,7]
[322438168,1713001840400,-1107.98,0.00035616,7]
[322438169,1713001840410,-500.0,0.00035616,7]
[322438170,1713001840419,-500.0,0.00035616,7]
[322438171,1713001840428,-500.0,0.00035616,7]
[322438172,1713001840437,-500.82197253,0.00035616,7]
[322438173,1713001840446,-500.0,0.00035616,7]
[322438174,1713001840456,-500.0,0.00035616,7]
[322438175,1713001840465,-500.0,0.00035616,7]
[322438176,1713001840474,-501.40249693,0.00035616,7]
[322438177,1713001840483,-503.40471124,0.00035616,7]
[322438178,1713001840492,-516.92728088,0.00035616,7]
[322438179,1713001840502,-702.53,0.00035616,7]
[322438180,1713001840511,-500.0,0.00035616,7]
[322438181,1713001840520,-500.0,0.00035616,7]
[322438182,1713001840530,-500.0,0.00035616,7]
[322438183,1713001840539,-500.0,0.00035616,7]
[322438184,1713001840548,-500.0,0.00035616,7]
[322438185,1713001840557,-500.0,0.00035616,7]
[322438186,1713001840566,-500.0,0.00035616,7]
[322438187,1713001840576,-500.0,0.00035616,7]
[322438188,1713001840585,-500.0,0.00035616,7]
[322438189,1713001840596,-500.0,0.00035616,7]
[322438190,1713001840605,-500.0,0.00035616,7]
[322438191,1713001840615,-500.0,0.00035616,7]
[322438192,1713001840624,-500.0,0.00035616,7]
[322438193,1713001840633,-1835.99,0.00035616,7]
[322438194,1713001840643,-500.0,0.00035616,7]
[322438195,1713001840652,-500.0,0.00035616,7]
[322438196,1713001840661,-500.0,0.00035616,7]
[322438197,1713001840671,-500.0,0.00035616,7]
[322438198,1713001840680,-895.76,0.00035616,7]
[322438199,1713001840690,-500.0,0.00035616,7]
[322438200,1713001840699,-500.0,0.00035616,7]
[322438201,1713001840708,-500.0,0.00035616,7]
[322438202,1713001840717,-500.0,0.00035616,7]
[322438203,1713001840726,-500.0,0.00035616,7]
[322438204,1713001840736,-875.58,0.00035616,7]
[322438205,1713001840745,-416.00457762,0.00035616,7]
[322438206,1713001840754,-520.17380218,0.00035616,7]
[322438207,1713001840763,-2935.46,0.00035616,7]
[322438208,1713001840772,-500.0,0.00035616,7]
[322438209,1713001840781,-2562.24,0.00035616,7]
[322438210,1713001840789,-586.2799575,0.00035616,7]
[322438211,1713001840798,-500.0,0.00035616,7]
[322438212,1713001840808,-329.73914869,0.00035616,7]
[322438213,1713001840820,-500.0,0.00035616,7]
[322438214,1713001840829,-500.0,0.00035616,7]
[322438215,1713001840839,-500.0,0.00035616,7]
[322438216,1713001840848,-2801.36,0.00035616,7]
[322438217,1713001840858,-162.80713427,0.00035616,7]
[322438218,1713001840867,-506.21965015,0.00035616,7]
[322438219,1713001840876,-972.86,0.00035616,7]
[322438220,1713001840885,-501.00411996,0.00035616,7]
[322438221,1713001840895,-500.0,0.00035616,7]
[322438222,1713001840904,-500.0,0.00035616,7]
[322438223,1713001840914,-500.0,0.00035616,7]
[322438224,1713001840923,-500.0,0.00035616,7]
[322438225,1713001840932,-500.0,0.00035616,7]
[322438226,1713001840941,-500.0,0.00035616,7]
[322438227,1713001840951,-2414.62,0.00035616,7]
[322438228,1713001840959,-500.0,0.00035616,7]
[322438229,1713001840969,-500.0,0.00035616,7]
[322438230,1713001840979,-504.18454249,0.00035616,7]
[322438231,1713001840988,-500.0,0.00035616,7]
[322438232,1713001841004,-500.0,0.00035616,7]
[322438233,1713001841018,-505.71973689,0.00035616,7]
[322438234,1713001841027,-500.0,0.00035616,7]
[322438235,1713001841037,-3097.48,0.00035616,7]
[322438236,1713001841047,-1580.7,0.00035616,7]
[322438237,1713001841056,-500.0,0.00035616,7]
[322438238,1713001841066,-500.0,0.00035616,7]
[322438239,1713001841076,-500.0,0.00035616,7]
[322438240,1713001841085,-502.33900205,0.00035616,7]
[322438241,1713001841097,-503.25069039,0.00035616,7]
[322438242,1713001841106,-516.85798279,0.00035616,7]
[322438243,1713001841116,-374.25531236,0.00035616,7]
[322438244,1713001841126,-515.55,0.00035616,7]
[322438245,1713001841136,-500.0,0.00035616,7]
[322438246,1713001841146,-500.0,0.00035616,7]
[322438247,1713001841155,-1025.91,0.00035616,7]
[322438248,1713001841165,-500.0,0.00035616,7]
[322438249,1713001841175,-500.0,0.00035616,7]
[322438250,1713001841185,-507.12892981,0.00035616,7]
[322438251,1713001841194,-1138.62,0.00035616,7]
[322438252,1713001841204,-500.0,0.00035616,7]
[322438253,1713001841213,-500.0,0.00035616,7]
[322438254,1713001841223,-500.0,0.00035616,7]
[322438255,1713001841233,-11652.87,0.00035616,7]
[322438256,1713001841243,-500.0,0.00035616,7]
[322438257,1713001841252,-500.0,0.00035616,7]
[322438258,1713001841262,-300.0,0.00035616,7]
[322438259,1713001841272,-1053.67,0.00035616,7]
[322438260,1713001841281,-500.0,0.00035616,7]
[322438261,1713001841291,-500.0,0.00035616,7]
[322438262,1713001841300,-546.2,0.00035616,7]
[322438263,1713001841310,-500.0,0.00035616,7]
[322438264,1713001841319,-500.0,0.00035616,7]
[322438265,1713001841329,-500.0,0.00035616,7]
[322438266,1713001841339,-500.0,0.00035616,7]
[322438267,1713001841348,-34717.53,0.00035616,7]
[322438268,1713001841358,-561.14403191,0.00035616,7]
[322438269,1713001841367,-500.0,0.00035616,7]
[322438270,1713001841377,-500.0,0.00035616,7]
[322438271,1713001841386,-500.0,0.00035616,7]
[322438272,1713001841396,-1000.0,0.00035616,7]
[322438273,1713001841406,-500.0,0.00035616,7]
[322438274,1713001841415,-1185.8,0.00035616,7]
[322438275,1713001841425,-500.0,0.00035616,7]
[322438276,1713001841435,-500.0,0.00035616,7]
[322438277,1713001841444,-501.32346255,0.00035616,7]
[322438278,1713001841454,-503.26559361,0.00035616,7]
[322438279,1713001841463,-500.0,0.00035616,7]
[322438280,1713001841472,-500.0,0.00035616,7]
[322438281,1713001841482,-515.95723654,0.00035616,7]
[322438282,1713001841491,-2694.35,0.00035616,7]
[322438283,1713001841501,-1142.2,0.00035616,7]
[322438284,1713001841511,-500.0,0.00035616,7]
[322438285,1713001841520,-860.36,0.00035616,7]
[322438286,1713001841530,-500.0,0.00035616,7]
[322438287,1713001841540,-501.77509205,0.00035616,7]
[322438288,1713001841550,-760.58,0.00035616,7]
[322438289,1713001841560,-500.0,0.00035616,7]
[322438290,1713001841569,-500.0,0.00035616,7]
[322438291,1713001841579,-500.0,0.00035616,7]
[322438292,1713001841589,-500.0,0.00035616,7]
[322438293,1713001841599,-262.0817509,0.00035616,7]
[322438294,1713001841608,-500.0,0.00035616,7]
[322438295,1713001841618,-500.0,0.00035616,7]
[322438296,1713001841627,-561.7647371,0.00035616,7]
[322438297,1713001841637,-502.06209144,0.00035616,7]
[322438298,1713001841646,-501.42290715,0.00035616,7]
[322438299,1713001841655,-500.0,0.00035616,7]
[322438300,1713001841664,-500.0,0.00035616,7]
[322438301,1713001841673,-500.0,0.00035616,7]
[322438302,1713001841683,-500.0,0.00035616,7]
[322438303,1713001841692,-500.0,0.00035616,7]
[322438304,1713001841701,-500.0,0.00035616,7]
[322438305,1713001841710,-2071.66,0.00035616,7]
[322438306,1713001841720,-345.59004506,0.00035616,7]
[322438307,1713001841729,-500.0,0.00035616,7]
[322438308,1713001841738,-500.0,0.00035616,7]
[322438309,1713001841748,-500.0,0.00035616,7]
[322438310,1713001841757,-500.0,0.00035616,7]
[322438311,1713001841767,-1485.06,0.00035616,7]
[322438312,1713001841777,-500.0,0.00035616,7]
[322438313,1713001841787,-1142.55,0.00035616,7]
[322438314,1713001841796,-510.00208274,0.00035616,7]
[322438315,1713001841805,-500.0,0.00035616,7]
[322438316,1713001841816,-7403.46,0.00035616,7]
[322438317,1713001841826,-3942.55,0.00035616,7]
[322438318,1713001841835,-500.0,0.00035616,7]
[322438319,1713001841845,-803.9,0.00035616,7]
[322438320,1713001841855,-500.0,0.00035616,7]
[322438321,1713001841865,-616.05104333,0.00035616,7]
[322438322,1713001841874,-2083.33,0.00035616,2]
[322438323,1713001841884,-1452.39,0.00035616,7]
[322438324,1713001841894,-500.0,0.00035616,7]
[322438325,1713001841903,-159.82727101,0.00035752,7]
[322438326,1713001842047,-157.31099709,0.0003592,7]
[322438327,1713001842057,-222.83351195,0.00036475,2]
[322438328,1713001842067,-219.28494068,0.00036529,7]
[322438329,1713001842077,-159.858928,0.0003653,2]
[322438330,1713001842087,-21136.8622847,0.00036894,2]
[322438331,1713001842098,-154.9721438,0.00036991,7]
[322438332,1713001842108,-157.31099709,0.00037238,7]
[322438333,1713001842117,-222.83351195,0.00037434,2]
[322438334,1713001842127,-455.77,0.00037533,2]
[322438335,1713001842136,-455.77,0.00037533,2]
[322438336,1713001842145,-500.0,0.00037534,7]
[322438337,1713001842155,-500.0,0.00037534,7]
[322438338,1713001842164,-500.0,0.00037534,7]
[322438339,1713001842173,-500.0,0.00037534,7]
[322438340,1713001842182,-884.78,0.00037534,7]
[322438341,1713001842191,-500.0,0.00037534,7]
[322438342,1713001842201,-500.0,0.00037534,7]
[322438343,1713001842210,-500.0,0.00037534,7]
[322438344,1713001842219,-500.0,0.00037534,7]
[322438345,1713001842229,-500.0,0.00037534,7]
[322438346,1713001842238,-500.0,0.00037534,7]
[322438347,1713001842248,-500.0,0.00037534,7]
[322438348,1713001842257,-505.81425759,0.00037534,7]
[322438349,1713001842266,-426.30325555,0.00037534,7]
[322438350,1713001842275,-500.0,0.00037534,7]
[322438351,1713001842285,-500.0,0.00037534,7]
[322438352,1713001842294,-193.55305598,0.00037534,7]
[322438353,1713001842303,-500.0,0.00037534,7]
[322438354,1713001842313,-510.04369506,0.00037534,7]
[322438355,1713001842323,-512.13517562,0.00037534,7]
[322438356,1713001842332,-500.0,0.00037534,7]
[322438357,1713001842346,-504.24733933,0.00037534,7]
[322438358,1713001842355,-500.0,0.00037534,7]
[322438359,1713001842364,-291.63521212,0.00037534,7]
[322438361,1713001842373,-500.0,0.00037534,7]
[322438362,1713001842382,-507.26959406,0.00037534,7]
[322438364,1713001842391,-500.0,0.00037534,7]
[322438365,1713001842401,-500.0,0.00037534,7]
[322438366,1713001842410,-500.0,0.00037534,7]
[322438367,1713001842420,-507.93374897,0.00037534,7]
[322438368,1713001842430,-500.0,0.00037534,7]
[322438369,1713001842439,-500.0,0.00037534,7]
[322438370,1713001842448,-1027.17,0.00037534,7]
[322438371,1713001842457,-500.0,0.00037534,7]
[322438372,1713001842466,-540.5841576,0.00037534,7]
[322438373,1713001842476,-500.0,0.00037534,7]
[322438374,1713001842485,-505.06340822,0.00037534,7]
[322438375,1713001842494,-503.37206942,0.00037534,7]
[322438376,1713001842503,-500.0,0.00037534,7]
[322438377,1713001842513,-500.0,0.00037534,7]
[322438378,1713001842522,-500.0,0.00037534,7]
[322438379,1713001842531,-500.0,0.00037534,7]
[322438380,1713001842540,-500.0,0.00037534,7]
[322438381,1713001842550,-504.35252052,0.00037534,7]
[322438382,1713001842559,-2717.77,0.00037534,7]
[322438383,1713001842568,-1416.38,0.00037534,7]
[322438384,1713001842578,-511.58418896,0.00037534,7]
[322438385,1713001842587,-982.14,0.00037534,7]
[322438386,1713001842596,-500.0,0.00037534,7]
[322438387,1713001842605,-500.0,0.00037534,7]
[322438388,1713001842615,-413.52960305,0.00037534,7]
[322438389,1713001842624,-500.0,0.00037534,7]
[322438390,1713001842633,-500.0,0.00037534,7]
[322438391,1713001842642,-500.0,0.00037534,7]
[322438392,1713001842652,-500.0,0.00037534,7]
[322438393,1713001842661,-500.0,0.00037534,7]
[322438394,1713001842670,-500.0,0.00037534,7]
[322438395,1713001842679,-500.0,0.00037534,7]
[322438396,1713001842689,-500.0,0.00037534,7]
[322438397,1713001842698,-500.0,0.00037534,7]
[322438399,1713001842707,-500.0,0.00037534,7]
[322438400,1713001842716,-212.80795983,0.00037534,7]
[322438402,1713001842725,-500.0,0.00037534,7]
[322438404,1713001842734,-500.0,0.00037534,7]
[322438406,1713001842743,-504.09628153,0.00037534,7]
[322438407,1713001842752,-322.96051541,0.00037534,7]
[322438409,1713001842762,-500.0,0.00037534,7]
[322438411,1713001842771,-500.0,0.00037534,7]
[322438412,1713001842780,-500.0,0.00037534,7]
[322438413,1713001842790,-500.0,0.00037534,7]
[322438415,1713001842799,-500.0,0.00037534,7]
[322438416,1713001842808,-500.0,0.00037534,7]
[322438417,1713001842820,-500.0,0.00037534,7]
[322438418,1713001842830,-500.0,0.00037534,7]
[322438419,1713001842839,-500.0,0.00037534,7]
[322438421,1713001842848,-504.05755057,0.00037534,7]
[322438422,1713001842858,-500.0,0.00037534,7]
[322438423,1713001842868,-500.0,0.00037534,7]
[322438424,1713001842877,-500.0,0.00037534,7]
[322438425,1713001842886,-500.0,0.00037534,7]
[322438426,1713001842896,-500.0,0.00037534,7]
[322438427,1713001842905,-501.59222558,0.00037534,7]
[322438428,1713001842914,-680.98,0.00037534,7]
[322438429,1713001842923,-4545.46,0.00037534,7]
[322438430,1713001842933,-500.0,0.00037534,7]
[322438431,1713001842942,-500.0,0.00037534,7]
[322438432,1713001842951,-500.0,0.00037534,7]
[322438433,1713001842960,-500.0,0.00037534,7]
[322438434,1713001842970,-1491.88,0.00037534,7]
[322438435,1713001842979,-500.0,0.00037534,7]
[322438436,1713001842989,-213.59816491,0.00037534,7]
[322438437,1713001842998,-500.0,0.00037534,7]
[322438438,1713001843007,-808.46,0.00037534,7]
[322438439,1713001843016,-500.0,0.00037534,7]
[322438440,1713001843026,-500.0,0.00037534,7]
[322438441,1713001843035,-500.0,0.00037534,7]
[322438442,1713001843044,-500.0,0.00037534,7]
[322438443,1713001843054,-507.18,0.00037534,7]
[322438444,1713001843063,-683.72,0.00037534,7]
[322438445,1713001843072,-350.0221726,0.00037534,7]
[322438446,1713001843081,-500.0,0.00037534,7]
[322438447,1713001843093,-500.0,0.00037534,7]
[322438448,1713001843101,-500.0,0.00037534,7]
[322438449,1713001843111,-500.0,0.00037534,7]
[322438450,1713001843120,-777.88,0.00037534,7]
[322438451,1713001843130,-520.85823513,0.00037534,7]
[322438452,1713001843139,-500.0,0.00037534,7]
[322438453,1713001843149,-409.34752428,0.00037534,7]
[322438454,1713001843158,-500.0,0.00037534,7]
[322438455,1713001843167,-1258.32,0.00037534,7]
[322438456,1713001843176,-500.0,0.00037534,7]
[322438457,1713001843185,-500.0,0.00037534,7]
[322438458,1713001843194,-1107.98,0.00037534,7]
[322438459,1713001843203,-500.0,0.00037534,7]
[322438460,1713001843212,-500.0,0.00037534,7]
[322438461,1713001843222,-500.0,0.00037534,7]
[322438462,1713001843231,-500.0,0.00037534,7]
[322438463,1713001843240,-500.0,0.00037534,7]
[322438464,1713001843249,-702.53,0.00037534,7]
[322438466,1713001843258,-500.0,0.00037534,7]
[322438468,1713001843268,-500.0,0.00037534,7]
[322438469,1713001843277,-500.0,0.00037534,7]
[322438470,1713001843286,-500.0,0.00037534,7]
[322438471,1713001843295,-500.0,0.00037534,7]
[322438472,1713001843304,-500.0,0.00037534,7]
[322438473,1713001843313,-500.0,0.00037534,7]
[322438474,1713001843323,-501.54953174,0.00037534,7]
[322438475,1713001843332,-500.0,0.00037534,7]
[322438476,1713001843342,-1835.99,0.00037534,7]
[322438477,1713001843351,-500.0,0.00037534,7]
[322438478,1713001843360,-500.0,0.00037534,7]
[322438479,1713001843370,-500.0,0.00037534,7]
[322438480,1713001843379,-895.76,0.00037534,7]
[322438481,1713001843388,-500.0,0.00037534,7]
[322438482,1713001843397,-500.0,0.00037534,7]
[322438483,1713001843407,-500.0,0.00037534,7]
[322438484,1713001843416,-875.58,0.00037534,7]
[322438485,1713001843426,-2935.46,0.00037534,7]
[322438486,1713001843435,-500.0,0.00037534,7]
[322438487,1713001843444,-2562.24,0.00037534,7]
[322438488,1713001843453,-500.0,0.00037534,7]
[322438489,1713001843463,-500.0,0.00037534,7]
[322438490,1713001843474,-503.26912575,0.00037534,7]
[322438491,1713001843483,-500.0,0.00037534,7]
[322438492,1713001843493,-2801.36,0.00037534,7]
[322438493,1713001843502,-972.86,0.00037534,7]
[322438494,1713001843511,-502.41790659,0.00037534,7]
[322438495,1713001843520,-500.0,0.00037534,7]
[322438496,1713001843530,-500.0,0.00037534,7]
[322438497,1713001843539,-254.09674536,0.00037534,7]
[322438498,1713001843548,-2414.62,0.00037534,7]
[322438499,1713001843557,-506.7252745,0.00037534,7]
[322438500,1713001843565,-500.0,0.00037534,7]
[322438501,1713001843575,-3097.48,0.00037534,7]
[322438502,1713001843584,-1580.7,0.00037534,7]
[322438503,1713001843594,-500.0,0.00037534,7]
[322438504,1713001843603,-500.0,0.00037534,7]
[322438505,1713001843612,-515.55,0.00037534,7]
[322438506,1713001843621,-500.0,0.00037534,7]
[322438507,1713001843631,-417.90975819,0.00037534,7]
[322438508,1713001843640,-1025.91,0.00037534,7]
[322438509,1713001843650,-1138.62,0.00037534,7]
[322438510,1713001843659,-500.0,0.00037534,7]
[322438511,1713001843668,-500.0,0.00037534,7]
[322438512,1713001843681,-500.0,0.00037534,7]
[322438513,1713001843689,-11652.87,0.00037534,7]
[322438514,1713001843700,-500.0,0.00037534,7]
[322438515,1713001843709,-453.65434106,0.00037534,7]
[322438516,1713001843718,-300.0,0.00037534,7]
[322438517,1713001843728,-1053.67,0.00037534,7]
[322438518,1713001843738,-500.0,0.00037534,7]
[322438519,1713001843747,-546.2,0.00037534,7]
[322438520,1713001843756,-637.09408538,0.00037534,7]
[322438521,1713001843766,-500.0,0.00037534,7]
[322438522,1713001843775,-500.0,0.00037534,7]
[322438523,1713001843784,-500.0,0.00037534,7]
[322438524,1713001843793,-34717.53,0.00037534,7]
[322438525,1713001843802,-500.0,0.00037534,7]
[322438526,1713001843813,-500.0,0.00037534,7]
[322438527,1713001843825,-500.0,0.00037534,7]
[322438528,1713001843834,-500.0,0.00037534,7]
[322438529,1713001843845,-1185.8,0.00037534,7]
[322438530,1713001843855,-500.0,0.00037534,7]
[322438531,1713001843865,-517.58141715,0.00037534,7]
[322438532,1713001843874,-485.61008657,0.00037534,7]
[322438533,1713001843883,-2694.35,0.00037534,7]
[322438534,1713001843892,-1142.2,0.00037534,7]
[322438535,1713001843902,-535.21305459,0.00037534,7]
[322438536,1713001843912,-860.36,0.00037534,7]
[322438537,1713001843920,-500.0,0.00037534,7]
[322438538,1713001843930,-760.58,0.00037534,7]
[322438539,1713001843939,-500.0,0.00037534,7]
[322438540,1713001843948,-500.0,0.00037534,7]
[322438541,1713001843957,-516.49275527,0.00037534,7]
[322438542,1713001843966,-500.0,0.00037534,7]
[322438543,1713001843975,-500.0,0.00037534,7]
[322438544,1713001843985,-504.6646191,0.00037534,7]
[322438545,1713001843993,-501.56750092,0.00037534,7]
[322438546,1713001844004,-500.0,0.00037534,7]
[322438547,1713001844013,-252.534917,0.00037534,2]
[322438548,1713001844022,-500.0,0.00037534,7]
[322438549,1713001844031,-252.534917,0.00037534,2]
[322438550,1713001844041,-2071.66,0.00037534,7]
[322438551,1713001844051,-500.0,0.00037534,7]
[322438552,1713001844061,-500.0,0.00037534,7]
[322438553,1713001844071,-502.23567579,0.00037534,7]
[322438554,1713001844082,-500.0,0.00037534,7]
[322438555,1713001844092,-1485.06,0.00037534,7]
[322438556,1713001844101,-500.0,0.00037534,7]
[322438557,1713001844111,-1142.55,0.00037534,7]
[322438558,1713001844120,-500.0,0.00037534,7]
[322438559,1713001844129,-7403.46,0.00037534,7]
[322438560,1713001844139,-151.0,0.00037534,2]
[322438561,1713001844148,-3942.55,0.00037534,7]
[322438562,1713001844157,-151.0,0.00037534,2]
[322438563,1713001844167,-154.803619,0.00037534,2]
[322438564,1713001844176,-500.0,0.00037534,7]
[322438565,1713001844185,-803.9,0.00037534,7]
[322438566,1713001844195,-329.47011998,0.00037534,7]
[322438567,1713001844204,-2083.33,0.00037534,2]
[322438568,1713001844215,-1452.39,0.00037534,7]
[322438569,1713001844225,-152.287091,0.00037534,2]
[322438570,1713001844235,-500.0,0.00037578,7]
[322438571,1713001844245,-500.0,0.00037578,7]
[322438572,1713001844254,-500.0,0.00037578,7]
[322438573,1713001844264,-500.0,0.00037578,7]
[322438574,1713001844273,-500.0,0.00037579,7]
[322438575,1713001844282,-500.0,0.00037579,7]
[322438576,1713001844292,-500.0,0.00037579,7]
[322438577,1713001844301,-500.0,0.00037579,7]
[322438578,1713001844310,-500.0,0.00037579,7]
[322438579,1713001844319,-500.0,0.00037579,7]
[322438580,1713001844328,-506.2298719,0.00037579,7]
[322438581,1713001844338,-500.0,0.00037579,7]
[322438582,1713001844347,-500.0,0.00037579,7]
[322438583,1713001844356,-588.54238469,0.00037579,7]
[322438584,1713001844365,-500.0,0.0003758,7]
[322438585,1713001844374,-500.0,0.0003758,7]
[322438586,1713001844383,-539.36292818,0.0003758,7]
[322438587,1713001844392,-503.55964822,0.0003758,7]
[322438588,1713001844403,-500.0,0.0003758,7]
[322438589,1713001844412,-500.0,0.0003758,7]
[322438590,1713001844422,-501.92387107,0.0003758,7]
[322438591,1713001844431,-501.19133556,0.0003758,7]
[322438592,1713001844441,-503.88828186,0.0003758,7]
[322438593,1713001844450,-500.0,0.0003758,7]
[322438594,1713001844460,-500.0,0.0003758,7]
[322438595,1713001844469,-508.45342757,0.0003758,7]
[322438596,1713001844478,-151.0,0.0003758,2]
[322438597,1713001844487,-151.0,0.0003758,2]
[322438598,1713001844496,-151.0,0.0003758,2]
[322438599,1713001844505,-151.0,0.0003758,2]
[322438600,1713001844514,-264.158041,0.0003758,2]
[322438601,1713001844523,-264.158041,0.0003758,2]
[322438602,1713001844533,-189.09573,0.0003758,2]
[322438603,1713001844542,-189.09573,0.0003758,2]
[322438604,1713001844551,-152.60882266,0.00037639,22]
[322438605,1713001844560,-152.60882266,0.00037639,22]
[322438606,1713001844569,-975.31224978,0.00037639,2]
[322438607,1713001844578,-157.31099709,0.00037757,7]
[322438608,1713001844588,-341.29935642,0.0003789,2]
[322438609,1713001844597,-221.754,0.00038251,2]
[322438610,1713001844606,-358.09,0.00038356,4]
[322438611,1713001844615,-222.83351195,0.00038393,2]
[322438612,1713001844624,-155.0,0.00039,2]
[322438613,1713001844633,-2030.63840771,0.00039352,2]
[322438614,1713001844642,-222.83351195,0.00039352,2]
[322438615,1713001844651,-153.0,0.00039405,2]
[322438616,1713001844756,-153.0,0.00039405,2]
[322438617,1713001844765,-153.0,0.00039405,2]
[322438618,1713001844774,-455.76,0.00039451,2]
[322438619,1713001844783,-500.0,0.00039452,7]
[322438620,1713001844792,-500.0,0.00039452,7]
[322438621,1713001844801,-500.0,0.00039452,7]
[322438622,1713001844810,-884.78,0.00039452,7]
[322438623,1713001844822,-500.0,0.00039452,7]
[322438624,1713001844832,-500.0,0.00039452,7]
[322438625,1713001844842,-500.0,0.00039452,7]
[322438626,1713001844851,-500.0,0.00039452,7]
[322438627,1713001844861,-508.52981161,0.00039452,7]
[322438628,1713001844870,-500.0,0.00039452,7]
[322438629,1713001844879,-219.50666895,0.00039452,7]
[322438630,1713001845033,-936.414026,0.00037534,2]
[322438631,1713001845043,-280.49333105,0.00039452,7]
[322438632,1713001845054,-275.73086767,0.00039452,7]
[322438633,1713001845064,-171.27004492,0.00039452,7]
[322438634,1713001845073,-500.0,0.00039452,7]
[322438635,1713001845082,-500.0,0.00039452,7]
[322438636,1713001845092,-500.0,0.00039452,7]
[322438637,1713001845102,-500.0,0.00039452,7]
[322438638,1713001845111,-500.0,0.00039452,7]
[322438639,1713001845120,-500.0,0.00039452,7]
[322438640,1713001845130,-500.0,0.00039452,7]
[322438641,1713001845139,-1027.17,0.00039452,7]
[322438642,1713001845148,-500.0,0.00039452,7]
[322438643,1713001845157,-500.0,0.00039452,7]
[322438644,1713001845166,-505.54955557,0.00039452,7]
[322438645,1713001845176,-483.67862824,0.00039452,7]
[322438646,1713001845184,-500.0,0.00039452,7]
[322438647,1713001845193,-500.0,0.00039452,7]
[322438648,1713001845202,-197.59509211,0.00039452,7]
[322438649,1713001845211,-2717.77,0.00039452,7]
[322438650,1713001845220,-1416.38,0.00039452,7]
[322438651,1713001845229,-982.14,0.00039452,7]